Workbook

Sheet Лист1
A1: Рацион: Основное организованное меню с 7-11 лет | E1: День: | F1: 3 | I1: Сезон: | K1: 01.01-12.31 (Все)
D2: Неделя: | F2: 1 | I2: Возраст: | K2: Основное организованное меню с 7-11 лет
A3: № рец. | B3: Прием пищи, наименование блюда | D3: Масса порции | E3: Пищевые вещества (г) | H3: Энерге- тическая ценность (ккал) | I3: Витамины (мг) | M3: Минеральные вещества (мг)
E4: Б | F4: Ж | G4: У | I4: B1 | J4: C | K4: A, мкг | L4: E | M4: Ca | N4: P | O4: Mg | P4: Fe
A5: 1 | B5: 2 | D5: 3 | E5: 4 | F5: 5 | G5: 6 | H5: 7 | I5: 8 | J5: 9 | K5: 10 | L5: 11 | M5: 12 | N5: 13 | O5: 14 | P5: 15
A6: завтрак
A7: 207 | B7: Каша рисовая молочная | D7: 185 | E7: 4.50 | F7: 7.20 | G7: 27.60 | H7: 194.00 | I7: 0.03 | J7: 0.28 | K7: 47.89 | L7: 0.06 | M7: 113.54 | N7: 85.82 | O7: 13.85 | P7: 0.11
A8: 536 | B8: Йогурт питьевой | D8: 100 | E8: 2.80 | F8: 3.20 | G8: 4.50 | H8: 56.4 | I8: 0.04 | J8: 0.6 | K8: 22.00 | L8: 0.07 | M8: 122.00 | N8: 96 | O8: 15.00 | P8: 0.10
A9: 602 | B9: Кекс "Столичный" | D9: 50 | E9: 2.00 | F9: 9.86 | G9: 26.66 | H9: 203.33 | I9: 0.02 | M9: 12.00 | P9: 0.53
A10: 283 | B10: Чай с сахаром | D10: 200 | E10: 0.08 | F10: 0.02 | G10: 10.01 | H10: 40.51 | M10: 0.30 | P10: 0.03
A11: 16 | B11: Хлеб пшеничный | D11: 30 | E11: 1.52 | F11: 0.16 | G11: 9.84 | H11: 70.50 | I11: 0.02 | M11: 4.00 | P11: 0.22
A13: итого за завтрак | D13: =SUM(D7:D12) -> 565 | E13: =SUM(E7:E12) -> 11 | F13: 20 | G13: 79 | H13: 565 | I13: 0 | J13: 1 | K13: 70 | L13: 0 | M13: 252 | N13: 182 | O13: 29 | P13: 0
A14: обед
A15: 25 | B15: огурцы в нарезке | D15: 60 | E15: 0.42 | F15: 0.06 | G15: 1.14 | H15: 6.60 | I15: 0.02 | J15: 4.49 | L15: 2.20 | M15: 2.94 | N15: 0.7 | O15: 0.18 | P15: 0.02
A16: 61 | B16: Суп картофельный с крупой (пшено) | D16: 200 | E16: 2.65 | F16: 2.90 | G16: 14.14 | H16: 73.62 | I16: 0.03 | J16: 1.50 | K16: 200.15 | L16: 1.13 | M16: 7.15 | N16: 23.00 | O16: 9.35 | P16: 0.29
A17: 138 | B17: Картофельное пюре | D17: 180 | E17: 4.34 | F17: 6.72 | G17: 29.37 | H17: 195.94 | I17: 0.21 | J17: 34.29 | K17: 42.62 | L17: 0.24 | M17: 54.78 | N17: 128.28 | O17: 43.56 | P17: 1.58
A18: 500 | B18: Биточки рубленные из птицы (паровые) со сметанным соусом | D18: 110 | E18: 15.03 | F18: 5.00 | G18: 2.92 | H18: 208.29 | I18: 0.01 | J18: 0.07 | K18: 16.94 | L18: 0.06 | M18: 27.07 | O18: 3.37 | P18: 0.05
A19: 211 | B19: компот свежих плодов | D19: 200 | E19: 0.12 | F19: 0.12 | G19: 12.92 | H19: 54.00 | I19: 0.02 | J19: 7.80 | K19: 2.50 | L19: 0.11 | M19: 11.40 | N19: 7.04 | O19: 5.34 | P19: 1.20
A20: 16 | B20: Хлеб пшеничный | D20: 30 | E20: 1.52 | F20: 0.16 | G20: 9.84 | H20: 70.50 | I20: 0.02 | M20: 4.00 | P20: 0.22
A21: 116 | B21: Хлеб столовый (ржано-пшеничный) | D21: 30 | E21: 1.98 | F21: 0.36 | G21: 10.20 | H21: 54.30 | I21: 0.05 | M21: 10.50 | P21: 1.17
A22: итого за обед | D22: 870 | E22: 33.39 | F22: 36.60 | G22: 113.76 | H22: =SUM(H15:H21) -> 663.25 | I22: 0.23 | J22: =J15+J16+J17+J18+J19+J21 -> 48.15 | K22: =K15+K16+K17+K18+K19+K21 -> 262.21 | L22: =L15+L16+L17+L18+L19+L21 -> 3.74 | M22: 60.72 | N22: =N15+N16+N17+N18+N19+N21 -> 159.02 | O22: 48.68 | P22: 4.76
A28: итого за день | D28: =D13+D22 -> 1435 | E28: 61.59 | F28: 57.79 | G28: 278.24 | H28: =H13+H22 -> 1227.99 | I28: =I13+I22+I27 -> 0.34 | J28: 25.56 | K28: 457.55 | L28: 7.85 | M28: 479.73 | N28: 499.62 | O28: 118.91 | P28: =P13+P22 -> 5.22

Sheet Лист2

Sheet Лист3
